fUST/lending_fUST_20250715
["ID","MTS","AMOUNT","RATE_DAILY","PERIOD"]
[372309346,1752583846335,-460.0,0.00020273,2]
[372309347,1752583846345,-460.0,0.00020273,2]
[372309348,1752583846355,-460.0,0.00020273,2]
[372309349,1752583846366,-460.0,0.00020273,2]
[372309350,1752583846376,-460.0,0.00020273,2]
[372309351,1752583846385,-460.0,0.00020273,2]
[372309353,1752583846396,-493.02,0.00020273,2]
[372309355,1752583846406,-160.0,0.00020312,2]
[372309357,1752583846416,-838.84061749,0.00020312,2]
[372309358,1752583846425,-160.0,0.00020312,2]
[372309359,1752583846435,-230.76969291,0.00020312,2]
[372309360,1752583846445,-525.51022752,0.00020312,2]
[372309362,1752583846455,-215.50840239,0.00020312,2]
[372309363,1752583846465,-160.0,0.00020315,2]
[372309364,1752583846478,-160.0,0.00020315,2]
[372309365,1752583846489,-160.0,0.00020315,2]
[372309366,1752583846498,-160.0,0.00020325,2]
[372309367,1752583846510,-503.44,0.00020338,3]
[372309368,1752583846520,-460.0,0.00020547,2]
[372309369,1752583846531,-539.95,0.00020547,2]
[372309370,1752583846541,-460.0,0.00020547,2]
[372309371,1752583846551,-460.0,0.00020547,2]
[372309372,1752583846561,-460.0,0.00020547,2]
[372309373,1752583846570,-460.0,0.00020547,2]
[372309374,1752583846580,-460.0,0.00020547,2]
[372309375,1752583846590,-460.0,0.00020547,2]
[372309376,1752583846600,-460.0,0.00020547,2]
[372309377,1752583846611,-460.0,0.00020547,2]
[372309378,1752583846621,-493.02,0.00020547,2]
[372309379,1752583846631,-420.0,0.00020603,2]
[372309380,1752583846642,-1611.46,0.000207,2]
[372309381,1752583846652,-458.544,0.0002078,2]
[372309382,1752583846662,-1500.0,0.00020796,2]
[372309384,1752583846671,-460.0,0.00020821,2]
[372309385,1752583846681,-539.95,0.00020821,2]
[372309386,1752583846691,-460.0,0.00020821,2]
[372309387,1752583846701,-460.0,0.00020821,2]
[372309388,1752583846711,-460.0,0.00020821,2]
[372309389,1752583846720,-460.0,0.00020821,2]
[372309390,1752583846730,-460.0,0.00020821,2]
[372309391,1752583846740,-460.0,0.00020821,2]
[372309392,1752583846750,-460.0,0.00020821,2]
[372309393,1752583846760,-460.0,0.00020821,2]
[372309394,1752583846770,-493.02,0.00020821,2]
[372309395,1752583846781,-260.0,0.00020873,2]
[372309396,1752583846791,-460.0,0.00021095,2]
[372309397,1752583846800,-539.95,0.00021095,2]
[372309398,1752583846810,-460.0,0.00021095,2]
[372309399,1752583846820,-460.0,0.00021095,2]
[372309400,1752583846830,-460.0,0.00021095,2]
[372309401,1752583846840,-460.0,0.00021095,2]
[372309402,1752583846849,-460.0,0.00021095,2]
[372309403,1752583846859,-460.0,0.00021095,2]
[372309404,1752583846871,-260.12573238,0.00021095,2]
[372309405,1752583846881,-238.5950024,0.00021095,2]
[372309406,1752583846891,-493.02,0.00021095,2]
[372309407,1752583846901,-207.4,0.00021155,2]
[372309408,1752583846910,-757.28,0.000212,2]
[372309409,1752583846920,-2000.0,0.00021344,2]
[372309410,1752583846930,-460.0,0.00021369,2]
[372309411,1752583846940,-539.95,0.00021369,2]
[372309412,1752583846955,-460.0,0.00021369,2]
[372309413,1752583846965,-460.0,0.00021369,2]
[372309414,1752583846975,-243.23965388,0.00021369,2]
[372309415,1752583846986,-460.0,0.00021369,2]
[372309416,1752583846996,-460.0,0.00021369,2]
[372309417,1752583847006,-460.0,0.00021369,2]
[372309418,1752583847016,-493.02,0.00021369,2]
[372309419,1752583847028,-360.0,0.00021421,2]
[372309420,1752583847037,-460.0,0.00021643,2]
[372309421,1752583847047,-539.95,0.00021643,2]
[372309422,1752583847057,-460.0,0.00021643,2]
[372309423,1752583847066,-460.0,0.00021643,2]
[372309424,1752583847075,-460.0,0.00021643,2]
[372309425,1752583847085,-460.0,0.00021643,2]
[372309426,1752583847094,-460.0,0.00021643,2]
[372309427,1752583847104,-493.02,0.00021643,2]
[372309428,1752583847114,-500.0,0.00021682,2]
[372309429,1752583847124,-224.05,0.0002177,2]
[372309430,1752583847134,-500.0,0.00021771,2]
[372309431,1752583847144,-2500.0,0.00021892,2]
[372309432,1752583847154,-460.0,0.00021917,2]
[372309433,1752583847163,-539.95,0.00021917,2]
[372309434,1752583847173,-460.0,0.00021917,2]
[372309435,1752583847183,-460.0,0.00021917,2]
[372309436,1752583847193,-460.0,0.00021917,2]
[372309437,1752583847202,-469.85567122,0.00021917,2]
[372309438,1752583847217,-460.0,0.00021917,2]
[372309439,1752583847227,-493.02,0.00021917,2]
[372309440,1752583847237,-460.0,0.00021969,2]
[372309441,1752583847247,-736.0,0.00022,4]
[372309442,1752583847256,-19724.4,0.00022,7]
[372309443,1752583847266,-233.08642408,0.00022191,2]
[372309444,1752583847277,-539.95,0.00022191,2]
[372309445,1752583847286,-460.0,0.00022191,2]
[372309446,1752583847296,-460.0,0.00022191,2]
[372309447,1752583847306,-426.55324857,0.00022191,2]
[372309448,1752583847316,-460.0,0.00022191,2]
[372309449,1752583847326,-493.02,0.00022191,2]
[372309450,1752583847337,-1000.02726853,0.00022319,2]
[372309451,1752583847347,-1611.46,0.000224,7]
[372309452,1752583847357,-1262.31,0.000224,2]
[372309453,1752583847366,-3000.0,0.0002244,2]
[372309454,1752583847376,-587.0,0.0002246,2]
[372309455,1752583847386,-539.95,0.00022465,2]
[372309456,1752583847396,-460.0,0.00022465,2]
[372309457,1752583847406,-460.0,0.00022465,2]
[372309458,1752583847417,-460.0,0.00022465,2]
[372309459,1752583847427,-493.02,0.00022465,2]
[372309460,1752583847437,-560.0,0.00022517,2]
[372309461,1752583847447,-215.0738,0.00022524,2]
[372309462,1752583847457,-539.95,0.00022739,2]
[372309463,1752583847466,-460.0,0.00022739,2]
[372309464,1752583847476,-460.0,0.00022739,2]
[372309465,1752583847486,-460.0,0.00022739,2]
[372309466,1752583847495,-493.02,0.00022739,2]
[372309467,1752583847505,-500.0,0.00022778,2]
[372309468,1752583847683,-1562.90213927,0.00022988,2]
[372309469,1752583847694,-1000.0,0.00023,6]
[372309470,1752583847703,-539.95,0.00023013,2]
[372309471,1752583847714,-460.0,0.00023013,2]
[372309472,1752583847724,-460.0,0.00023013,2]
[372309473,1752583847734,-460.0,0.00023013,2]
[372309474,1752583847743,-493.02,0.00023013,2]
[372309475,1752583847753,-164.09001902,0.00023041,2]
[372309476,1752583847763,-660.0,0.00023065,2]
[372309477,1752583847773,-647.0,0.00023082,2]
[372309478,1752583847784,-2155.0,0.00023082,2]
[372309479,1752583847794,-407.0,0.00023082,2]
[372309480,1752583847803,-968.0,0.00023082,2]
[372309481,1752583847813,-757.28,0.000231,7]
[372309482,1752583847823,-168.0,0.00023129,2]
[372309483,1752583847832,-164.09001902,0.00023151,2]
[372309484,1752583847842,-164.09001902,0.0002326,2]
[372309485,1752583847852,-539.95,0.00023287,2]
[372309486,1752583847861,-460.0,0.00023287,2]
[372309487,1752583847870,-460.0,0.00023287,2]
[372309488,1752583847879,-460.0,0.00023287,2]
[372309489,1752583847889,-493.02,0.00023287,2]
[372309490,1752583847898,-164.09001902,0.0002337,2]
[372309491,1752583847907,-2200.0,0.00023429,2]
[372309492,1752583847918,-164.09001902,0.00023479,2]
[372309493,1752583847927,-539.95,0.00023561,2]
[372309494,1752583847936,-589.74998434,0.00023561,2]
[372309495,1752583847946,-460.0,0.00023561,2]
[372309496,1752583847961,-460.0,0.00023561,2]
[372309497,1752583847970,-493.02,0.00023561,2]
[372309498,1752583847980,-164.09001902,0.00023589,2]
[372309499,1752583847989,-760.0,0.00023613,2]
[372309500,1752583847999,-168.0,0.00023646,2]
[372309501,1752583848008,-200.0,0.0002369,8]
[372309502,1752583848018,-164.09001902,0.00023699,2]
[372309503,1752583848029,-19724.4,0.000237,7]
[372309504,1752583848038,-779.184249,0.00023716,8]
[372309505,1752583848048,-160.0,0.00023805,3]
[372309506,1752583848057,-539.95,0.00023835,2]
[372309507,1752583848067,-460.0,0.00023835,2]
[372309508,1752583848076,-460.0,0.00023835,2]
[372309509,1752583848086,-493.02,0.00023835,2]
[372309510,1752583848096,-164.09001902,0.00023836,2]
[372309511,1752583848105,-168.0,0.0002384,2]
[372309512,1752583848115,-151.0,0.00023889,6]
[372309513,1752583848125,-223.0315306,0.00023893,2]
[372309514,1752583848134,-518.55219751,0.000239,2]
[372309515,1752583848144,-604.43985556,0.00023904,2]
[372309516,1752583848154,-164.09001902,0.00023945,2]
[372309517,1752583848164,-1000.0,0.00024,8]
[372309518,1752583848173,-525.51022752,0.00024,7]
[372309519,1752583848184,-838.84061749,0.00024,7]
[372309520,1752583848193,-160.0,0.00024,7]
[372309521,1752583848202,-230.76969291,0.00024,7]
[372309522,1752583848211,-164.09001902,0.00024055,2]
[372309523,1752583848221,-539.95,0.00024109,2]
[372309524,1752583848230,-460.0,0.00024109,2]
[372309525,1752583848240,-158.75814252,0.00024109,2]
[372309526,1752583848250,-493.02,0.00024109,2]
[372309527,1752583848260,-860.0,0.00024161,2]
[372309528,1752583848270,-164.09001902,0.00024164,2]
[372309529,1752583848282,-420.55584113,0.000242,2]
[372309530,1752583848293,-2000.0,0.000242,2]
[372309531,1752583848304,-150.0,0.000242,5]
[372309532,1752583848315,-151.0,0.00024226,7]
[372309533,1752583848325,-164.09001902,0.00024274,2]
[372309534,1752583848335,-1611.46,0.000243,7]
[372309535,1752583848346,-168.0,0.00024333,2]
[372309536,1752583848356,-168.0,0.00024345,2]
[372309537,1752583848366,-168.0,0.00024354,2]
[372309538,1752583848375,-539.95,0.00024383,2]
[372309539,1752583848385,-460.0,0.00024383,2]
[372309540,1752583848394,-493.02,0.00024383,2]
[372309541,1752583848404,-205.0,0.0002444,2]
[372309542,1752583848414,-207.0,0.0002444,2]
[372309543,1752583848423,-205.0,0.0002444,2]
[372309544,1752583848432,-804.0,0.00024484,2]
[372309545,1752583848441,-168.0,0.00024487,2]
[372309546,1752583848450,-15257.99,0.00024544,10]
[372309547,1752583848460,-120829.08,0.00024544,10]
[372309548,1752583848470,-152093.09,0.0002455,10]
[372309549,1752583848479,-215.50840239,0.0002455,3]
[372309550,1752583848490,-17662.46045321,0.0002455,3]
[372309551,1752583848500,-525.51022752,0.0002456,3]
[372309552,1752583848510,-230.76969291,0.0002456,3]
[372309553,1752583848519,-160.0,0.0002456,3]
[372309554,1752583848531,-151.0,0.00024563,7]
[372309555,1752583848541,-757.28,0.000246,7]
[372309556,1752583848551,-838.84061749,0.000246,3]
[372309557,1752583848561,-160.0,0.000246,3]
[372309558,1752583848571,-168.0,0.00024614,2]
[372309559,1752583848581,-118725.52635997,0.0002465,2]
[372309560,1752583848590,-145499.98063824,0.0002465,2]
[372309561,1752583848599,-501.57966218,0.0002465,2]
[372309562,1752583848609,-201.549208,0.0002465,7]
[372309563,1752583848618,-187.033841,0.0002465,7]
[372309564,1752583848628,-201.549208,0.0002465,7]
[372309565,1752583848637,-187.033841,0.0002465,7]
[372309566,1752583848647,-151.0,0.0002465,7]
[372309567,1752583848657,-151.0,0.0002465,7]
[372309568,1752583848667,-151.0,0.0002465,7]
[372309569,1752583848676,-151.0,0.0002465,7]
[372309570,1752583848686,-151.0,0.0002465,7]
[372309571,1752583848695,-210.070237,0.0002465,7]
[372309572,1752583848705,-210.070237,0.0002465,7]
[372309573,1752583848715,-151.0,0.0002465,7]
[372309574,1752583848725,-942.411657,0.0002465,7]
[372309575,1752583848734,-942.411657,0.0002465,7]
[372309576,1752583848744,-151.0,0.0002465,7]
[372309577,1752583848754,-151.0,0.0002465,7]
[372309578,1752583848764,-151.0,0.0002465,7]
[372309579,1752583848774,-151.0,0.0002465,7]
[372309580,1752583848784,-151.0,0.0002465,7]
[372309581,1752583848793,-388.59,0.00024657,2]
[372309582,1752583848803,-388.59,0.00024657,2]
[372309583,1752583848813,-388.59,0.00024657,2]
[372309584,1752583848823,-388.59,0.00024657,2]
[372309585,1752583848832,-388.59,0.00024657,2]
[372309586,1752583848842,-388.59,0.00024657,2]
[372309587,1752583848851,-388.59,0.00024657,2]
[372309588,1752583848861,-388.59,0.00024657,2]
[372309589,1752583848871,-388.59,0.00024657,2]
[372309590,1752583848880,-388.59,0.00024657,2]
[372309591,1752583848890,-388.59,0.00024657,2]
[372309592,1752583848899,-388.59,0.00024657,2]
[372309593,1752583848908,-388.59,0.00024657,2]
[372309594,1752583848918,-388.59,0.00024657,2]
[372309595,1752583848927,-388.59,0.00024657,2]
[372309596,1752583848937,-388.59,0.00024657,2]
[372309597,1752583848949,-388.59,0.00024657,2]
[372309598,1752583848958,-388.59,0.00024657,2]
[372309599,1752583848968,-388.59,0.00024657,2]
[372309600,1752583848977,-388.59,0.00024657,2]
[372309601,1752583848986,-388.59,0.00024657,2]
[372309602,1752583848997,-539.95,0.00024657,2]
[372309603,1752583849006,-404.30507499,0.00024657,2]
[372309604,1752583849016,-493.02,0.00024657,2]
[372309605,1752583849027,-200.0,0.00024658,15]
[372309606,1752583849036,-380.0,0.00024658,2]
[372309607,1752583849046,-200.0,0.00024658,2]
[372309608,1752583849056,-165.41320986,0.00024658,2]
[372309609,1752583849066,-185.88181984,0.00024658,2]
[372309610,1752583849076,-623.0,0.00024658,2]
[372309611,1752583849086,-623.0,0.00024685,2]
[372309612,1752583849095,-551.04073905,0.0002469,10]
[372309613,1752583849105,-160.0,0.000247,7]
[372309614,1752583849115,-215.50840239,0.000247,7]
[372309615,1752583849125,-21760.45,0.000247,2]
[372309616,1752583849135,-960.0,0.00024709,2]
[372309617,1752583849144,-623.0,0.00024713,2]
[372309618,1752583849154,-623.0,0.0002474,2]
[372309619,1752583849163,-168.0,0.00024741,2]
[372309620,1752583849173,-623.0,0.00024768,2]
[372309621,1752583849182,-150.0,0.00024773,2]
[372309622,1752583849192,-150.0,0.00024773,2]
[372309623,1752583849201,-500.0,0.00024773,2]
[372309624,1752583849211,-12928.91473705,0.00024774,2]
[372309625,1752583849221,-623.0,0.00024795,2]
[372309626,1752583849234,-2000.0,0.000248,2]
[372309627,1752583849244,-2000.0,0.000248,2]
[372309628,1752583849254,-2000.0,0.000248,2]
[372309629,1752583849263,-151.0,0.000248,7]
[372309630,1752583849273,-151.0,0.000248,7]
[372309631,1752583849285,-245.627837,0.000248,7]
[372309632,1752583849294,-151.0,0.000248,7]
[372309633,1752583849304,-151.0,0.000248,7]
[372309634,1752583849314,-205.0,0.000248,2]
[372309635,1752583849325,-151.0,0.000248,7]
[372309636,1752583849335,-151.0,0.000248,7]
[372309637,1752583849345,-151.0,0.000248,7]
[372309638,1752583849355,-151.0,0.000248,7]
[372309639,1752583849365,-151.0,0.000248,7]
[372309640,1752583849374,-151.0,0.000248,7]
[372309641,1752583849384,-151.0,0.000248,7]
[372309642,1752583849394,-151.0,0.000248,7]
[372309643,1752583849403,-151.0,0.000248,7]
[372309644,1752583849413,-151.0,0.000248,7]
[372309645,1752583849423,-151.0,0.000248,3]
[372309646,1752583849432,-152.25534,0.000248,7]
[372309647,1752583849442,-151.0,0.000248,7]
[372309648,1752583849452,-151.0,0.000248,7]
[372309649,1752583849462,-151.0,0.000248,7]
[372309650,1752583849471,-151.0,0.000248,7]
[372309651,1752583849481,-151.0,0.000248,7]
[372309652,1752583849491,-151.0,0.000248,7]
[372309653,1752583849500,-151.0,0.000248,7]
[372309654,1752583849510,-160.0,0.000248,7]
[372309655,1752583849520,-714.848759,0.000248,7]
[372309656,1752583849532,-714.848759,0.000248,7]
[372309657,1752583849542,-201.549208,0.000248,7]
[372309658,1752583849551,-187.033841,0.000248,7]
[372309659,1752583849561,-201.549208,0.000248,7]
[372309660,1752583849571,-187.033841,0.000248,7]
[372309661,1752583849580,-207.0,0.000248,2]
[372309662,1752583849590,-205.0,0.000248,2]
[372309663,1752583849599,-525.51022752,0.000248,7]
[372309664,1752583849609,-18300.9019392,0.000248,2]
[372309665,1752583849619,-151.0,0.000248,7]
[372309666,1752583849629,-623.0,0.00024822,2]
[372309667,1752583849639,-1016.7167744,0.00024845,2]
[372309668,1752583849648,-623.0,0.0002485,2]
[372309669,1752583849658,-151.0,0.0002485,7]
[372309670,1752583849667,-151.0,0.0002485,7]
[372309671,1752583849677,-377.25042,0.0002485,7]
[372309672,1752583849686,-377.25042,0.0002485,7]
[372309673,1752583849695,-5000.0,0.00024855,2]
[372309674,1752583849705,-5000.0,0.00024855,2]
[372309675,1752583849715,-151.0,0.00024873,7]
[372309676,1752583849724,-151.0,0.00024873,7]
[372309677,1752583849735,-623.0,0.00024877,2]
[372309678,1752583849745,-1016.7167744,0.0002489,2]
[372309679,1752583849753,-152.657689,0.00024896,7]
[372309680,1752583849763,-151.0,0.00024896,7]
[372309681,1752583849783,-234.032708,0.00024896,7]
[372309682,1752583849793,-234.032708,0.00024896,7]
[372309683,1752583849803,-192.90076,0.00024896,7]
[372309684,1752583849812,-192.90076,0.00024896,7]
[372309685,1752583849822,-5048.42966027,0.00024896,2]
[372309686,1752583849831,-2342.11123434,0.000249,2]
[372309687,1752583849842,-151.0,0.000249,7]
[372309688,1752583849851,-151.0,0.000249,7]
[372309689,1752583849860,-151.0,0.000249,7]
[372309690,1752583849870,-151.0,0.000249,7]
[372309691,1752583849879,-151.0,0.000249,7]
[372309692,1752583849889,-151.0,0.000249,7]
[372309693,1752583849898,-240.201303,0.000249,7]
[372309694,1752583849908,-151.0,0.000249,7]
[372309695,1752583849917,-205.0,0.000249,2]
[372309696,1752583849927,-205.0,0.000249,2]
[372309697,1752583849936,-151.0,0.000249,7]
[372309698,1752583849945,-151.0,0.000249,7]
[372309699,1752583849959,-151.0,0.000249,7]
[372309700,1752583849968,-151.0,0.000249,7]
[372309701,1752583849977,-151.0,0.000249,7]
[372309702,1752583849986,-151.0,0.000249,7]
[372309703,1752583849997,-151.0,0.000249,7]
[372309704,1752583850006,-1059.40694,0.000249,7]
[372309705,1752583850016,-1059.40694,0.000249,7]
[372309706,1752583850025,-151.0,0.000249,7]
[372309707,1752583850037,-151.0,0.000249,7]
[372309708,1752583850046,-151.0,0.000249,3]
[372309709,1752583850056,-151.0,0.000249,7]
[372309710,1752583850065,-577.893225,0.000249,7]
[372309711,1752583850075,-151.0,0.000249,7]
[372309712,1752583850085,-151.0,0.000249,7]
[372309713,1752583850094,-151.0,0.000249,7]
[372309714,1752583850103,-151.0,0.000249,7]
[372309715,1752583850112,-151.0,0.000249,7]
[372309716,1752583850122,-159.928607,0.000249,7]
[372309717,1752583850131,-151.0,0.000249,7]
[372309718,1752583850140,-151.0,0.000249,7]
[372309719,1752583850150,-151.0,0.000249,7]
[372309720,1752583850160,-151.0,0.000249,7]
[372309721,1752583850170,-151.0,0.000249,7]
[372309722,1752583850179,-151.0,0.000249,7]
[372309723,1752583850188,-151.0,0.000249,7]
[372309724,1752583850198,-151.0,0.000249,7]
[372309725,1752583850207,-151.0,0.000249,7]
[372309726,1752583850217,-222.815951,0.000249,7]
[372309727,1752583850226,-151.0,0.000249,7]
[372309728,1752583850236,-151.0,0.000249,7]
[372309729,1752583850245,-692.011827,0.000249,7]
[372309730,1752583850254,-692.011827,0.000249,7]
[372309731,1752583850264,-714.848759,0.000249,7]
[372309732,1752583850273,-714.848759,0.000249,7]
[372309733,1752583850288,-234.032708,0.000249,7]
[372309734,1752583850297,-234.032708,0.000249,7]
[372309735,1752583850306,-377.25042,0.000249,7]
[372309736,1752583850316,-377.25042,0.000249,7]
[372309737,1752583850326,-192.90076,0.000249,7]
[372309738,1752583850335,-192.90076,0.000249,7]
[372309739,1752583850345,-201.549208,0.000249,7]
[372309740,1752583850354,-187.033841,0.000249,7]
[372309741,1752583850364,-201.549208,0.000249,7]
[372309742,1752583850374,-187.033841,0.000249,7]
[372309743,1752583850384,-151.0,0.000249,7]
[372309744,1752583850393,-151.0,0.000249,7]
[372309745,1752583850402,-151.0,0.000249,7]
[372309746,1752583850412,-151.0,0.000249,7]
[372309747,1752583850421,-151.0,0.000249,7]
[372309748,1752583850430,-207.0,0.000249,2]
[372309749,1752583850439,-207.0,0.000249,2]
[372309750,1752583850448,-205.0,0.000249,2]
[372309751,1752583850458,-205.0,0.000249,2]
[372309752,1752583850467,-207.0,0.000249,2]
[372309753,1752583850477,-151.0,0.000249,7]
[372309754,1752583850489,-151.0,0.000249,7]
[372309755,1752583850499,-151.0,0.000249,7]
[372309756,1752583850508,-151.0,0.000249,7]
[372309757,1752583850518,-151.0,0.000249,7]
[372309758,1752583850530,-210.070237,0.000249,7]
[372309759,1752583850540,-210.070237,0.000249,7]
[372309760,1752583850549,-210.070237,0.000249,7]
[372309761,1752583850559,-210.070237,0.000249,7]
[372309762,1752583850569,-942.411657,0.000249,7]
[372309763,1752583850579,-942.411657,0.000249,7]
[372309764,1752583850588,-942.411657,0.000249,7]
[372309765,1752583850598,-942.411657,0.000249,7]
[372309766,1752583850608,-151.0,0.000249,7]
[372309767,1752583850618,-193.925774,0.000249,7]
[372309768,1752583850627,-677849.546089,0.000249,2]
[372309769,1752583850638,-151.0,0.000249,7]
[372309770,1752583850647,-3342.8898783,0.000249,2]
[372309771,1752583850657,-623.0,0.00024905,2]
[372309772,1752583850667,-388.59,0.00024931,2]
[372309773,1752583850677,-539.95,0.00024931,2]
[372309774,1752583850687,-493.02,0.00024931,2]
[372309775,1752583850697,-623.0,0.00024932,2]
[372309776,1752583850707,-3342.88987825,0.00024939,2]
[372309777,1752583850717,-623.0,0.00024959,2]
[372309778,1752583850727,-500.0,0.0002497,2]
[372309779,1752583850737,-3342.88987825,0.00024978,2]
[372309780,1752583850747,-2620.46,0.00024986,2]
[372309781,1752583850758,-623.0,0.00024987,2]
[372309782,1752583850767,-1000.46,0.0002499,30]
[372309783,1752583850780,-1000.0,0.0002499,30]
[372309784,1752583850791,-1000.0,0.0002499,30]
[372309785,1752583850801,-1000.0,0.0002499,30]
[372309786,1752583850811,-201.549208,0.0002499,7]
[372309787,1752583850821,-187.033841,0.0002499,7]
[372309788,1752583850831,-201.549208,0.0002499,7]
[372309789,1752583850841,-187.033841,0.0002499,7]
[372309790,1752583850851,-151.0,0.0002499,7]
[372309791,1752583850861,-200.0,0.00024999,2]
[372309792,1752583850871,-1577.0296086,0.00024999,7]
[372309793,1752583850880,-193.03141951,0.00025,2]
[372309794,1752583850890,-1000.0,0.00025,2]
[372309795,1752583850899,-1006.0,0.00025,2]
[372309796,1752583850909,-1000.0,0.00025,2]
[372309797,1752583850919,-1000.0,0.00025,2]
[372309798,1752583850929,-1000.0,0.00025,6]
[372309799,1752583850939,-2034.99986507,0.00025,14]
[372309800,1752583850951,-1062.72203392,0.00025,2]
[372309801,1752583850966,-15985.48995228,0.00025,2]
[372309802,1752583850976,-110364.57195378,0.00025,2]
[372309803,1752583850986,-2398.48646767,0.00025,2]
[372309804,1752583850997,-2645.0,0.00025,10]
[372309805,1752583851007,-2617.1645924,0.00025,2]
[372309806,1752583851016,-207.53549272,0.00025,2]
[372309807,1752583851026,-10364.0,0.00025,2]
[372309808,1752583851041,-358.31809304,0.00025,2]
[372309809,1752583851051,-500.0,0.00025,2]
[372309810,1752583851061,-300.0,0.00025,30]
[372309811,1752583851071,-120000.0,0.00025,2]
[372309812,1752583851081,-600.0,0.00025,2]
[372309813,1752583851091,-5622.73961655,0.00025,30]
[372309814,1752583851102,-2000.0,0.00025,14]
[372309815,1752583851120,-2000.0,0.00025,14]
[372309816,1752583851140,-2000.0,0.00025,14]
[372309817,1752583851158,-2000.0,0.00025,14]
[372309818,1752583851167,-1390.0,0.00025,14]
[372309819,1752583851177,-2000.0,0.00025,2]
[372309820,1752583851186,-646.72,0.00025,5]
[372309821,1752583851196,-62038.62017048,0.00025,30]
[372309822,1752583851205,-37455.75062315,0.00025,60]
[372309823,1752583851215,-366.83532484,0.00025,30]
[372309824,1752583851225,-160.0,0.00025,30]
[372309825,1752583851235,-1296.59708108,0.00025,7]
[372309826,1752583851246,-18389.45942432,0.00025,2]
[372309827,1752583851257,-151.0,0.00025,7]
[372309828,1752583851268,-151.0,0.00025,7]
[372309829,1752583851283,-151.0,0.00025,7]
[372309830,1752583851299,-151.0,0.00025,7]
[372309831,1752583851310,-151.0,0.00025,7]
[372309832,1752583851322,-151.0,0.00025,7]
[372309833,1752583851333,-151.0,0.00025,7]
[372309834,1752583851345,-151.0,0.00025,7]
[372309835,1752583851356,-151.0,0.00025,7]
[372309836,1752583851501,-151.0,0.00025,7]
[372309837,1752583851512,-151.0,0.00025,7]
[372309838,1752583851523,-151.0,0.00025,7]
[372309839,1752583851540,-151.0,0.00025,7]
[372309840,1752583851552,-151.0,0.00025,7]
[372309841,1752583851562,-151.0,0.00025,7]
[372309842,1752583851573,-1059.40694,0.00025,7]
[372309843,1752583851584,-1059.40694,0.00025,7]
[372309844,1752583851594,-151.0,0.00025,7]
[372309845,1752583851606,-151.0,0.00025,7]
[372309846,1752583851616,-151.0,0.00025,3]
[372309847,1752583851627,-577.893225,0.00025,7]
[372309848,1752583851637,-151.0,0.00025,7]
[372309849,1752583851647,-151.0,0.00025,7]
[372309850,1752583851667,-151.0,0.00025,7]